[Event "Titled Tuesday Blitz August 15 Early 2023"]
[White "Lysyj, Igor"]
[Black "Hua, Lefong"]
[WhiteFideId "4150120"]
[BlackFideId "2602253"]
[WhiteElo "2870"]
[BlackElo "2699"]
[Result "1/2-1/2"]
[Round "11"]
[TimeControl "180+1"]
[Date "2023.08.15"]
[WhiteClock "0:00:24"]
[BlackClock "0:00:16"]
[Board "29"]

1. d4 {[%clk 0:03:00]}  Nf6 {[%clk 0:02:59]} 2. c4 {[%clk 0:02:59]}  c5 {[%clk 0:02:59]} 3. d5 {[%clk 0:02:59]}  e6 {[%clk 0:02:59]} 4. Nc3 {[%clk 0:02:58]}  exd5 {[%clk 0:02:59]} 5. cxd5 {[%clk 0:02:58]}  d6 {[%clk 0:03:00]} 6. Nf3 {[%clk 0:02:56]}  g6 {[%clk 0:03:00]} 7. e4 {[%clk 0:02:51]}  Bg7 {[%clk 0:02:59]} 8. h3 {[%clk 0:02:48]}  a6 {[%clk 0:02:58]} 9. a4 {[%clk 0:02:48]}  Nbd7 {[%clk 0:02:58]} 10. Bd3 {[%clk 0:02:44]}  Nh5 {[%clk 0:02:58]} 11. O-O {[%clk 0:02:42]}  Ne5 {[%clk 0:02:58]} 12. Be2 {[%clk 0:02:42]}  Nxf3+ {[%clk 0:02:57]} 13. Bxf3 {[%clk 0:02:41]}  Qh4 {[%clk 0:02:58]} 14. Bxh5 {[%clk 0:02:21]}  gxh5 {[%clk 0:02:59]} 15. Ne2 {[%clk 0:02:20]}  Rg8 {[%clk 0:02:40]} 16. Nf4 {[%clk 0:02:02]}  Be5 {[%clk 0:02:27]} 17. Qf3 {[%clk 0:01:51]}  Bd7 {[%clk 0:02:02]} 18. Kh2 {[%clk 0:01:44]}  O-O-O {[%clk 0:01:48]} 19. Kh1 {[%clk 0:01:41]}  Rg4 {[%clk 0:01:24]} 20. g3 {[%clk 0:01:36]}  Rxf4 {[%clk 0:01:23]} 21. gxf4 {[%clk 0:01:21]}  Bxh3 {[%clk 0:01:18]} 22. Qg3 {[%clk 0:01:21]}  Qxg3 {[%clk 0:01:08]} 23. fxg3 {[%clk 0:01:20]}  Bxf1 {[%clk 0:01:07]} 24. fxe5 {[%clk 0:01:20]}  Bd3 {[%clk 0:01:00]} 25. Bg5 {[%clk 0:01:12]}  Bxe4+ {[%clk 0:00:57]} 26. Kh2 {[%clk 0:01:12]}  Rg8 {[%clk 0:00:56]} 27. Bf6 {[%clk 0:01:10]}  dxe5 {[%clk 0:00:45]} 28. Rc1 {[%clk 0:01:10]}  Bxd5 {[%clk 0:00:38]} 29. Rxc5+ {[%clk 0:01:08]}  Bc6 {[%clk 0:00:39]} 30. b4 {[%clk 0:01:05]}  Rg6 {[%clk 0:00:22]} 31. Bxe5 {[%clk 0:01:03]}  b6 {[%clk 0:00:20]} 32. Rc4 {[%clk 0:00:53]}  Kd7 {[%clk 0:00:19]} 33. Rd4+ {[%clk 0:00:44]}  Ke7 {[%clk 0:00:20]} 34. a5 {[%clk 0:00:42]}  bxa5 {[%clk 0:00:19]} 35. bxa5 {[%clk 0:00:42]}  Re6 {[%clk 0:00:20]} 36. Bf4 {[%clk 0:00:40]}  Re2+ {[%clk 0:00:20]} 37. Kg1 {[%clk 0:00:40]}  Rg2+ {[%clk 0:00:19]} 38. Kf1 {[%clk 0:00:39]}  Ra2 {[%clk 0:00:19]} 39. Bd2 {[%clk 0:00:37]}  Bb5+ {[%clk 0:00:18]} 40. Ke1 {[%clk 0:00:37]}  Ra4 {[%clk 0:00:18]} 41. Rd5 {[%clk 0:00:36]}  Re4+ {[%clk 0:00:17]} 42. Kd1 {[%clk 0:00:35]}  Ke6 {[%clk 0:00:17]} 43. Rg5 {[%clk 0:00:33]}  f6 {[%clk 0:00:18]} 44. Rg7 {[%clk 0:00:33]}  Rg4 {[%clk 0:00:18]} 45. Rxh7 {[%clk 0:00:32]}  Rxg3 {[%clk 0:00:17]} 46. Rxh5 {[%clk 0:00:30]}  f5 {[%clk 0:00:18]} 47. Rh4 {[%clk 0:00:29]}  Rg2 {[%clk 0:00:17]} 48. Kc1 {[%clk 0:00:28]}  Ke5 {[%clk 0:00:18]} 49. Rb4 {[%clk 0:00:27]}  Rg1+ {[%clk 0:00:16]} 50. Kb2 {[%clk 0:00:27]}  Rg2 {[%clk 0:00:17]} 51. Kc1 {[%clk 0:00:27]}  Re2 {[%clk 0:00:16]} 52. Rh4 {[%clk 0:00:24]}  Rg2 {[%clk 0:00:16]} 53. Rb4 {[%clk 0:00:24]} 1/2-1/2


[Site "https://www.chess.com"]

[Event "Titled Tuesday Blitz August 15 Early 2023"]
[White "Vaishali, Rameshbabu"]
[Black "Molina, Roberto Junio Brito"]
[WhiteFideId "5091756"]
[BlackFideId "2109450"]
[WhiteElo "2659"]
[BlackElo "2813"]
[Result "0-1"]
[Round "11"]
[TimeControl "180+1"]
[Date "2023.08.15"]
[WhiteClock "0:00:00"]
[BlackClock "0:00:50"]
[Board "33"]

1. e4 {[%clk 0:02:59]}  c6 {[%clk 0:02:59]} 2. Nc3 {[%clk 0:02:57]}  d5 {[%clk 0:03:00]} 3. Nf3 {[%clk 0:02:57]}  dxe4 {[%clk 0:03:00]} 4. Nxe4 {[%clk 0:02:58]}  Bg4 {[%clk 0:03:00]} 5. h3 {[%clk 0:02:53]}  Bxf3 {[%clk 0:03:00]} 6. Qxf3 {[%clk 0:02:54]}  Nd7 {[%clk 0:03:01]} 7. d4 {[%clk 0:02:50]}  Ndf6 {[%clk 0:03:00]} 8. c3 {[%clk 0:02:48]}  Nxe4 {[%clk 0:03:00]} 9. Qxe4 {[%clk 0:02:49]}  Nf6 {[%clk 0:03:01]} 10. Qe3 {[%clk 0:02:46]}  Qd5 {[%clk 0:02:58]} 11. c4 {[%clk 0:02:31]}  Qe4 {[%clk 0:02:57]} 12. Qxe4 {[%clk 0:02:24]}  Nxe4 {[%clk 0:02:58]} 13. Be3 {[%clk 0:02:25]}  e6 {[%clk 0:02:57]} 14. Bd3 {[%clk 0:02:23]}  Bb4+ {[%clk 0:02:56]} 15. Ke2 {[%clk 0:02:22]}  Nf6 {[%clk 0:02:56]} 16. g4 {[%clk 0:02:09]}  O-O-O {[%clk 0:02:47]} 17. Bc2 {[%clk 0:01:47]}  Ba5 {[%clk 0:02:45]} 18. Rad1 {[%clk 0:01:47]}  Rd7 {[%clk 0:02:36]} 19. Rd3 {[%clk 0:01:23]}  Bb6 {[%clk 0:02:26]} 20. Rhd1 {[%clk 0:01:21]}  Rhd8 {[%clk 0:02:16]} 21. f3 {[%clk 0:01:12]}  h6 {[%clk 0:02:14]} 22. h4 {[%clk 0:01:12]}  Ne8 {[%clk 0:02:10]} 23. Ba4 {[%clk 0:01:07]}  Re7 {[%clk 0:02:03]} 24. f4 {[%clk 0:00:52]}  Bc7 {[%clk 0:01:51]} 25. Kf3 {[%clk 0:00:52]}  Nd6 {[%clk 0:01:50]} 26. Rc1 {[%clk 0:00:43]}  h5 {[%clk 0:01:49]} 27. g5 {[%clk 0:00:38]}  Nf5 {[%clk 0:01:48]} 28. Bf2 {[%clk 0:00:38]}  Bb6 {[%clk 0:01:44]} 29. Rcd1 {[%clk 0:00:26]}  g6 {[%clk 0:01:41]} 30. a3 {[%clk 0:00:18]}  Red7 {[%clk 0:01:32]} 31. d5 {[%clk 0:00:07]}  Bxf2 {[%clk 0:01:26]} 32. Kxf2 {[%clk 0:00:08]}  exd5 {[%clk 0:01:23]} 33. cxd5 {[%clk 0:00:07]}  Rxd5 {[%clk 0:01:23]} 34. Rxd5 {[%clk 0:00:07]}  Rxd5 {[%clk 0:01:24]} 35. Rxd5 {[%clk 0:00:06]}  cxd5 {[%clk 0:01:24]} 36. Bb3 {[%clk 0:00:07]}  Ne7 {[%clk 0:01:23]} 37. Ke3 {[%clk 0:00:05]}  Kd7 {[%clk 0:01:24]} 38. Kd4 {[%clk 0:00:05]}  Kd6 {[%clk 0:01:24]} 39. Bc2 {[%clk 0:00:05]}  Nc6+ {[%clk 0:01:23]} 40. Kc3 {[%clk 0:00:05]}  Ne7 {[%clk 0:01:15]} 41. Kd4 {[%clk 0:00:05]}  b6 {[%clk 0:01:10]} 42. b4 {[%clk 0:00:05]}  a5 {[%clk 0:01:10]} 43. Bd3 {[%clk 0:00:04]}  axb4 {[%clk 0:01:08]} 44. axb4 {[%clk 0:00:05]}  Ke6 {[%clk 0:00:53]} 45. b5 {[%clk 0:00:05]}  Kd6 {[%clk 0:00:53]} 46. Bc2 {[%clk 0:00:05]}  Nf5+ {[%clk 0:00:51]} 47. Kc3 {[%clk 0:00:00]}  Nxh4 {[%clk 0:00:50]} 0-1


[Site "https://www.chess.com"]

[Event "Titled Tuesday Blitz August 15 Early 2023"]
[White "Putnam, Liam"]
[Black "Ovchinnikov, Vsevolod"]
[WhiteFideId "30938279"]
[BlackFideId "24176842"]
[WhiteElo "2805"]
[BlackElo "2642"]
[Result "0-1"]
[Round "11"]
[TimeControl "180+1"]
[Date "2023.08.15"]
[WhiteClock "0:01:04"]
[BlackClock "0:00:07"]
[Board "34"]

1. c3 {[%clk 0:03:00]}  Nf6 {[%clk 0:02:57]} 2. Qa4 {[%clk 0:03:00]}  g6 {[%clk 0:02:55]} 3. f3 {[%clk 0:02:59]}  Bg7 {[%clk 0:02:55]} 4. Kd1 {[%clk 0:03:00]}  c5 {[%clk 0:02:55]} 5. Qh4 {[%clk 0:03:00]}  Nc6 {[%clk 0:02:55]} 6. Qe1 {[%clk 0:03:01]}  d5 {[%clk 0:02:56]} 7. d3 {[%clk 0:03:00]}  b6 {[%clk 0:02:56]} 8. e3 {[%clk 0:03:00]}  e5 {[%clk 0:02:56]} 9. Kc2 {[%clk 0:02:58]}  a5 {[%clk 0:02:56]} 10. b3 {[%clk 0:02:57]}  a4 {[%clk 0:02:56]} 11. Na3 {[%clk 0:02:55]}  O-O {[%clk 0:02:53]} 12. Bb2 {[%clk 0:02:53]}  Be6 {[%clk 0:02:51]} 13. Ne2 {[%clk 0:02:51]}  Qd7 {[%clk 0:02:48]} 14. g4 {[%clk 0:02:22]}  h5 {[%clk 0:02:44]} 15. gxh5 {[%clk 0:02:13]}  Nxh5 {[%clk 0:02:42]} 16. Ng3 {[%clk 0:02:13]}  Nf6 {[%clk 0:02:20]} 17. h4 {[%clk 0:02:13]}  d4 {[%clk 0:02:04]} 18. h5 {[%clk 0:02:10]}  axb3+ {[%clk 0:01:56]} 19. axb3 {[%clk 0:02:08]}  dxc3 {[%clk 0:01:56]} 20. Bxc3 {[%clk 0:02:09]}  Nd5 {[%clk 0:01:47]} 21. hxg6 {[%clk 0:02:04]}  fxg6 {[%clk 0:01:43]} 22. Bb2 {[%clk 0:01:55]}  Rxf3 {[%clk 0:01:25]} 23. Nc4 {[%clk 0:01:54]}  Ndb4+ {[%clk 0:01:08]} 24. Kb1 {[%clk 0:01:50]}  Rxa1+ {[%clk 0:01:07]} 25. Bxa1 {[%clk 0:01:51]}  b5 {[%clk 0:00:40]} 26. Nd2 {[%clk 0:01:35]}  Qa7 {[%clk 0:00:16]} 27. Bb2 {[%clk 0:01:31]}  e4 {[%clk 0:00:10]} 28. d4 {[%clk 0:01:21]}  Qa2+ {[%clk 0:00:10]} 29. Kc1 {[%clk 0:01:21]}  Rxf1 {[%clk 0:00:09]} 30. Qxf1 {[%clk 0:01:20]}  Nd3+ {[%clk 0:00:09]} 31. Qxd3 {[%clk 0:01:21]}  exd3 {[%clk 0:00:10]} 32. Nge4 {[%clk 0:01:16]}  cxd4 {[%clk 0:00:09]} 33. exd4 {[%clk 0:01:15]}  Nxd4 {[%clk 0:00:08]} 34. Nc3 {[%clk 0:01:10]}  Ne2+ {[%clk 0:00:07]} 35. Nxe2 {[%clk 0:01:07]}  Qxb2+ {[%clk 0:00:08]} 36. Kd1 {[%clk 0:01:08]}  dxe2+ {[%clk 0:00:08]} 37. Kxe2 {[%clk 0:01:09]}  Bxb3 {[%clk 0:00:08]} 38. Rb1 {[%clk 0:01:08]}  Bc4+ {[%clk 0:00:07]} 39. Kd1 {[%clk 0:01:08]}  Qd4 {[%clk 0:00:07]} 40. Rc1 {[%clk 0:01:04]}  Bh6 {[%clk 0:00:08]} 41. Rc2 {[%clk 0:01:05]}  Bb3 {[%clk 0:00:08]} 42. Kc1 {[%clk 0:01:04]}  Qa1# {[%clk 0:00:07]} 0-1


[Site "https://www.chess.com"]

[Event "Titled Tuesday Blitz August 15 Early 2023"]
[White "Di Nicolantonio, Lucas"]
[Black "Yanchenko, Roman"]
[WhiteFideId "680460"]
[BlackFideId "4137329"]
[WhiteElo "2626"]
[BlackElo "2786"]
[Result "0-1"]
[Round "11"]
[TimeControl "180+1"]
[Date "2023.08.15"]
[WhiteClock "0:00:03"]
[BlackClock "0:00:17"]
[Board "36"]

1. Nf3 {[%clk 0:03:00]}  d5 {[%clk 0:02:59]} 2. e3 {[%clk 0:03:01]}  Nf6 {[%clk 0:03:00]} 3. c4 {[%clk 0:03:01]}  c6 {[%clk 0:03:00]} 4. Nc3 {[%clk 0:03:02]}  a6 {[%clk 0:03:00]} 5. d4 {[%clk 0:03:01]}  Bf5 {[%clk 0:03:00]} 6. Qb3 {[%clk 0:02:56]}  Ra7 {[%clk 0:03:00]} 7. Bd2 {[%clk 0:02:51]}  e6 {[%clk 0:03:00]} 8. Nh4 {[%clk 0:02:50]}  Be4 {[%clk 0:03:00]} 9. f3 {[%clk 0:02:45]}  dxc4 {[%clk 0:02:59]} 10. Qxc4 {[%clk 0:02:44]}  Bd5 {[%clk 0:02:53]} 11. Qe2 {[%clk 0:02:45]}  c5 {[%clk 0:02:47]} 12. dxc5 {[%clk 0:02:42]}  Bxc5 {[%clk 0:02:46]} 13. e4 {[%clk 0:02:43]}  Bc6 {[%clk 0:02:45]} 14. O-O-O {[%clk 0:02:38]}  Nbd7 {[%clk 0:02:35]} 15. g4 {[%clk 0:02:31]}  Nxg4 {[%clk 0:02:26]} 16. Nf5 {[%clk 0:02:01]}  exf5 {[%clk 0:02:22]} 17. fxg4 {[%clk 0:02:01]}  fxg4 {[%clk 0:02:12]} 18. Qxg4 {[%clk 0:01:58]}  O-O {[%clk 0:01:52]} 19. Kb1 {[%clk 0:01:42]}  Qf6 {[%clk 0:01:40]} 20. Qg3 {[%clk 0:00:55]}  Qg6 {[%clk 0:01:36]} 21. Qh4 {[%clk 0:00:42]}  Ne5 {[%clk 0:01:32]} 22. Be2 {[%clk 0:00:36]}  Raa8 {[%clk 0:01:27]} 23. Bf4 {[%clk 0:00:35]}  Rae8 {[%clk 0:01:22]} 24. Bh5 {[%clk 0:00:35]}  Qe6 {[%clk 0:01:19]} 25. Nd5 {[%clk 0:00:31]}  Ng6 {[%clk 0:01:18]} 26. Bxg6 {[%clk 0:00:31]}  hxg6 {[%clk 0:01:17]} 27. Rhe1 {[%clk 0:00:27]}  Bd6 {[%clk 0:01:04]} 28. Nf6+ {[%clk 0:00:15]}  gxf6 {[%clk 0:00:30]} 29. Bxd6 {[%clk 0:00:15]}  Ba4 {[%clk 0:00:26]} 30. Rd4 {[%clk 0:00:07]}  Rd8 {[%clk 0:00:23]} 31. Re3 {[%clk 0:00:05]}  Rxd6 {[%clk 0:00:21]} 32. Rxa4 {[%clk 0:00:03]}  Rd1+ {[%clk 0:00:17]} 33. Kc2 {[%clk 0:00:04]}  Rfd8 {[%clk 0:00:17]} 34. Raa3 {[%clk 0:00:03]}  Qc4+ {[%clk 0:00:17]} 35. Rac3 {[%clk 0:00:03]}  R8d2# {[%clk 0:00:17]} 0-1


[Site "https://www.chess.com"]

[Event "Titled Tuesday Blitz August 15 Early 2023"]
[White "Kosteniuk, Alexandra"]
[Black "Bodnaruk, Anastasia"]
[WhiteFideId "4128125"]
[BlackFideId "4181751"]
[WhiteElo "2749"]
[BlackElo "2623"]
[Result "1-0"]
[Round "11"]
[TimeControl "180+1"]
[Date "2023.08.15"]
[WhiteClock "0:00:24"]
[BlackClock "0:00:00"]
[Board "37"]

1. Nf3 {[%clk 0:03:00]}  Nf6 {[%clk 0:02:59]} 2. g3 {[%clk 0:03:01]}  g6 {[%clk 0:03:00]} 3. Bg2 {[%clk 0:03:01]}  Bg7 {[%clk 0:03:00]} 4. O-O {[%clk 0:03:02]}  O-O {[%clk 0:03:01]} 5. d4 {[%clk 0:03:03]}  d5 {[%clk 0:03:01]} 6. c3 {[%clk 0:03:03]}  c5 {[%clk 0:02:58]} 7. dxc5 {[%clk 0:02:57]}  Ne4 {[%clk 0:02:56]} 8. Be3 {[%clk 0:02:54]}  Na6 {[%clk 0:02:52]} 9. b4 {[%clk 0:02:48]}  Nxb4 {[%clk 0:02:40]} 10. cxb4 {[%clk 0:02:42]}  Bxa1 {[%clk 0:02:40]} 11. Nd4 {[%clk 0:02:42]}  a5 {[%clk 0:01:56]} 12. Nd2 {[%clk 0:02:30]}  Bxd4 {[%clk 0:01:47]} 13. Bxd4 {[%clk 0:02:30]}  axb4 {[%clk 0:01:44]} 14. Nxe4 {[%clk 0:02:24]}  dxe4 {[%clk 0:01:44]} 15. Bxe4 {[%clk 0:02:12]}  Rxa2 {[%clk 0:01:40]} 16. e3 {[%clk 0:02:09]}  Be6 {[%clk 0:01:27]} 17. Qf3 {[%clk 0:02:01]}  b3 {[%clk 0:01:23]} 18. Bxb7 {[%clk 0:01:39]}  b2 {[%clk 0:01:21]} 19. Rb1 {[%clk 0:01:33]}  Qa5 {[%clk 0:00:46]} 20. Kg2 {[%clk 0:01:14]}  Qb4 {[%clk 0:00:37]} 21. Be4 {[%clk 0:01:10]}  Qa3 {[%clk 0:00:26]} 22. Qf4 {[%clk 0:01:05]}  f6 {[%clk 0:00:26]} 23. Qc7 {[%clk 0:01:02]}  Qa7 {[%clk 0:00:16]} 24. Qxa7 {[%clk 0:00:55]}  Rxa7 {[%clk 0:00:16]} 25. Rxb2 {[%clk 0:00:55]}  Rc8 {[%clk 0:00:14]} 26. c6 {[%clk 0:00:49]}  Rac7 {[%clk 0:00:14]} 27. Rb7 {[%clk 0:00:42]}  Rxc6 {[%clk 0:00:07]} 28. Bxc6 {[%clk 0:00:42]}  Rxc6 {[%clk 0:00:08]} 29. Rxe7 {[%clk 0:00:42]}  Bd5+ {[%clk 0:00:08]} 30. e4 {[%clk 0:00:43]}  Bf7 {[%clk 0:00:08]} 31. Rd7 {[%clk 0:00:39]}  Re6 {[%clk 0:00:05]} 32. f3 {[%clk 0:00:37]}  h5 {[%clk 0:00:04]} 33. h3 {[%clk 0:00:36]}  Kg7 {[%clk 0:00:04]} 34. g4 {[%clk 0:00:36]}  hxg4 {[%clk 0:00:05]} 35. hxg4 {[%clk 0:00:36]}  g5 {[%clk 0:00:05]} 36. Rd5 {[%clk 0:00:35]}  Kg6 {[%clk 0:00:05]} 37. Rf5 {[%clk 0:00:34]}  Rc6 {[%clk 0:00:06]} 38. Kg3 {[%clk 0:00:34]}  Ra6 {[%clk 0:00:05]} 39. e5 {[%clk 0:00:31]}  fxe5 {[%clk 0:00:04]} 40. Bxe5 {[%clk 0:00:31]}  Re6 {[%clk 0:00:02]} 41. Bc3 {[%clk 0:00:31]}  Rd6 {[%clk 0:00:02]} 42. Bb2 {[%clk 0:00:30]}  Rc6 {[%clk 0:00:01]} 43. Be5 {[%clk 0:00:24]}  Re6 {[%clk 0:00:01]} 44. Kf2 {[%clk 0:00:24]}  Be8 {[%clk 0:00:00]} 45. Bd4 {[%clk 0:00:24]} 1-0


[Site "https://www.chess.com"]

[Event "Titled Tuesday Blitz August 15 Early 2023"]
[White "Akobian, Varuzhan"]
[Black "gmbenjaminbok"]
[WhiteFideId "13300580"]
[WhiteElo "2747"]
[BlackElo "2921"]
[Result "0-1"]
[Round "11"]
[TimeControl "180+1"]
[Date "2023.08.15"]
[WhiteClock "0:00:00"]
[BlackClock "0:01:52"]
[Board "38"]

1. d4 {[%clk 0:02:51]}  Nf6 {[%clk 0:02:58]} 2. c4 {[%clk 0:02:50]}  e6 {[%clk 0:02:59]} 3. Nc3 {[%clk 0:02:50]}  Bb4 {[%clk 0:02:59]} 4. Qc2 {[%clk 0:02:50]}  d5 {[%clk 0:02:59]} 5. a3 {[%clk 0:02:49]}  Bxc3+ {[%clk 0:02:59]} 6. Qxc3 {[%clk 0:02:50]}  O-O {[%clk 0:02:59]} 7. Bg5 {[%clk 0:02:50]}  h6 {[%clk 0:03:00]} 8. Bxf6 {[%clk 0:02:48]}  Qxf6 {[%clk 0:03:01]} 9. Nf3 {[%clk 0:02:48]}  dxc4 {[%clk 0:03:00]} 10. Qxc4 {[%clk 0:02:48]}  Nc6 {[%clk 0:03:01]} 11. e3 {[%clk 0:02:48]}  e5 {[%clk 0:02:55]} 12. d5 {[%clk 0:02:46]}  e4 {[%clk 0:02:53]} 13. Nd2 {[%clk 0:02:39]}  Ne7 {[%clk 0:02:47]} 14. Rb1 {[%clk 0:02:25]}  Bf5 {[%clk 0:02:40]} 15. Qxc7 {[%clk 0:01:26]}  Rfc8 {[%clk 0:02:27]} 16. Qa5 {[%clk 0:00:55]}  Rc2 {[%clk 0:02:13]} 17. Be2 {[%clk 0:00:42]}  b6 {[%clk 0:02:01]} 18. Qa4 {[%clk 0:00:35]}  Rxb2 {[%clk 0:02:00]} 19. Rxb2 {[%clk 0:00:27]}  Qxb2 {[%clk 0:02:01]} 20. Qb5 {[%clk 0:00:06]}  Qc1+ {[%clk 0:01:51]} 21. Bd1 {[%clk 0:00:00]}  Rd8 {[%clk 0:01:52]} 0-1


[Site "https://www.chess.com"]

[Event "Titled Tuesday Blitz August 15 Early 2023"]
[White "Thecourseoisildur"]
[Black "Ter-Sahakyan, Samvel"]
[BlackFideId "13302531"]
[WhiteElo "2584"]
[BlackElo "2817"]
[Result "1-0"]
[Round "11"]
[TimeControl "180+1"]
[Date "2023.08.15"]
[WhiteClock "0:00:05"]
[BlackClock "0:00:00"]
[Board "39"]

1. d4 {[%clk 0:03:00]}  f5 {[%clk 0:02:57]} 2. g3 {[%clk 0:02:57]}  Nf6 {[%clk 0:02:57]} 3. Bg2 {[%clk 0:02:58]}  e6 {[%clk 0:02:58]} 4. c4 {[%clk 0:02:56]}  c6 {[%clk 0:02:58]} 5. Nf3 {[%clk 0:02:55]}  d5 {[%clk 0:02:58]} 6. O-O {[%clk 0:02:54]}  Bd6 {[%clk 0:02:58]} 7. b3 {[%clk 0:02:54]}  Qe7 {[%clk 0:02:57]} 8. Bb2 {[%clk 0:02:55]}  O-O {[%clk 0:02:57]} 9. Qc1 {[%clk 0:02:55]}  a5 {[%clk 0:02:41]} 10. Ba3 {[%clk 0:02:53]}  Bd7 {[%clk 0:02:37]} 11. Bxd6 {[%clk 0:02:52]}  Qxd6 {[%clk 0:02:37]} 12. Qa3 {[%clk 0:02:52]}  Qxa3 {[%clk 0:02:36]} 13. Nxa3 {[%clk 0:02:53]}  Be8 {[%clk 0:02:36]} 14. Nc2 {[%clk 0:02:51]}  Bh5 {[%clk 0:02:35]} 15. Nce1 {[%clk 0:02:46]}  Ne4 {[%clk 0:02:26]} 16. Nd3 {[%clk 0:02:44]}  Nd7 {[%clk 0:02:26]} 17. Rfe1 {[%clk 0:02:39]}  g5 {[%clk 0:02:21]} 18. Nfe5 {[%clk 0:02:37]}  Nxe5 {[%clk 0:02:20]} 19. Nxe5 {[%clk 0:02:36]}  a4 {[%clk 0:02:14]} 20. f3 {[%clk 0:02:25]}  Nd6 {[%clk 0:02:14]} 21. Kf2 {[%clk 0:02:21]}  Ra7 {[%clk 0:02:05]} 22. Nd7 {[%clk 0:02:06]}  Rf7 {[%clk 0:02:02]} 23. Ne5 {[%clk 0:02:05]}  Rc7 {[%clk 0:01:56]} 24. c5 {[%clk 0:01:44]}  Nb5 {[%clk 0:01:55]} 25. e3 {[%clk 0:01:43]}  g4 {[%clk 0:01:37]} 26. Bf1 {[%clk 0:01:30]}  Na3 {[%clk 0:01:18]} 27. Bd3 {[%clk 0:01:10]}  gxf3 {[%clk 0:01:17]} 28. h3 {[%clk 0:01:09]}  Rg7 {[%clk 0:01:09]} 29. Rg1 {[%clk 0:01:08]}  Bg6 {[%clk 0:01:02]} 30. Nxf3 {[%clk 0:00:56]}  h5 {[%clk 0:00:56]} 31. Ne5 {[%clk 0:00:53]}  Ra8 {[%clk 0:00:54]} 32. g4 {[%clk 0:00:50]}  hxg4 {[%clk 0:00:33]} 33. hxg4 {[%clk 0:00:49]}  Bh7 {[%clk 0:00:31]} 34. gxf5 {[%clk 0:00:43]}  Bxf5 {[%clk 0:00:31]} 35. Bxf5 {[%clk 0:00:38]}  exf5 {[%clk 0:00:31]} 36. Rxg7+ {[%clk 0:00:38]}  Kxg7 {[%clk 0:00:32]} 37. Rg1+ {[%clk 0:00:38]}  Kf8 {[%clk 0:00:28]} 38. Rg5 {[%clk 0:00:31]}  Nb5 {[%clk 0:00:16]} 39. Rxf5+ {[%clk 0:00:30]}  Kg8 {[%clk 0:00:13]} 40. Rg5+ {[%clk 0:00:18]}  Kh7 {[%clk 0:00:10]} 41. Rf5 {[%clk 0:00:17]}  a3 {[%clk 0:00:08]} 42. Rf7+ {[%clk 0:00:16]}  Kg8 {[%clk 0:00:09]} 43. Rxb7 {[%clk 0:00:06]}  Nc3 {[%clk 0:00:09]} 44. Nxc6 {[%clk 0:00:06]}  Nxa2 {[%clk 0:00:09]} 45. Kg3 {[%clk 0:00:03]}  Nc3 {[%clk 0:00:06]} 46. Nb4 {[%clk 0:00:04]}  a2 {[%clk 0:00:03]} 47. Nxa2 {[%clk 0:00:04]}  Nxa2 {[%clk 0:00:04]} 48. Kf4 {[%clk 0:00:03]}  Nc3 {[%clk 0:00:03]} 49. b4 {[%clk 0:00:02]}  Ra6 {[%clk 0:00:01]} 50. b5 {[%clk 0:00:02]}  Re6 {[%clk 0:00:02]} 51. c6 {[%clk 0:00:01]}  Nxb5 {[%clk 0:00:02]} 52. Rxb5 {[%clk 0:00:01]}  Rxc6 {[%clk 0:00:02]} 53. Rxd5 {[%clk 0:00:02]}  Kf7 {[%clk 0:00:03]} 54. Rf5+ {[%clk 0:00:02]}  Kg6 {[%clk 0:00:03]} 55. Re5 {[%clk 0:00:02]}  Rc1 {[%clk 0:00:03]} 56. Ke4 {[%clk 0:00:03]}  Kf6 {[%clk 0:00:03]} 57. Kd5 {[%clk 0:00:03]}  Ra1 {[%clk 0:00:04]} 58. Re6+ {[%clk 0:00:03]}  Kf5 {[%clk 0:00:04]} 59. Re8 {[%clk 0:00:03]}  Ra5+ {[%clk 0:00:04]} 60. Kc4 {[%clk 0:00:03]}  Ra4+ {[%clk 0:00:04]} 61. Kd3 {[%clk 0:00:03]}  Ra3+ {[%clk 0:00:04]} 62. Ke2 {[%clk 0:00:04]}  Ra2+ {[%clk 0:00:04]} 63. Kf3 {[%clk 0:00:05]}  Ra3 {[%clk 0:00:05]} 64. Rf8+ {[%clk 0:00:03]}  Ke6 {[%clk 0:00:05]} 65. Ke4 {[%clk 0:00:04]}  Ra4 {[%clk 0:00:05]} 66. Rh8 {[%clk 0:00:04]}  Kf6 {[%clk 0:00:05]} 67. Rh6+ {[%clk 0:00:04]}  Kg5 {[%clk 0:00:03]} 68. Rc6 {[%clk 0:00:04]}  Rb4 {[%clk 0:00:02]} 69. Kd5 {[%clk 0:00:03]}  Rb5+ {[%clk 0:00:02]} 70. Rc5 {[%clk 0:00:04]}  Rb1 {[%clk 0:00:02]} 71. e4 {[%clk 0:00:04]}  Kf4 {[%clk 0:00:03]} 72. e5 {[%clk 0:00:04]}  Rb8 {[%clk 0:00:02]} 73. Rc6 {[%clk 0:00:04]}  Rd8+ {[%clk 0:00:01]} 74. Rd6 {[%clk 0:00:04]}  Ra8 {[%clk 0:00:02]} 75. Rf6+ {[%clk 0:00:04]}  Kg5 {[%clk 0:00:02]} 76. Rf1 {[%clk 0:00:04]}  Rd8+ {[%clk 0:00:02]} 77. Ke4 {[%clk 0:00:04]}  Ra8 {[%clk 0:00:02]} 78. e6 {[%clk 0:00:04]}  Ra6 {[%clk 0:00:01]} 79. Ke5 {[%clk 0:00:04]}  Ra2 {[%clk 0:00:01]} 80. e7 {[%clk 0:00:04]}  Re2+ {[%clk 0:00:00]} 81. Kd6 {[%clk 0:00:05]} 1-0


[Site "https://www.chess.com"]

[Event "Titled Tuesday Blitz August 15 Early 2023"]
[White "Postlmayer, Jakob"]
[Black "Wong, Yinn Long"]
[WhiteFideId "1643622"]
[BlackFideId "5707684"]
[WhiteElo "2555"]
[BlackElo "2722"]
[Result "0-1"]
[Round "11"]
[TimeControl "180+1"]
[Date "2023.08.15"]
[WhiteClock "0:00:19"]
[BlackClock "0:00:57"]
[Board "41"]

1. d4 {[%clk 0:03:00]}  Nf6 {[%clk 0:02:59]} 2. Bg5 {[%clk 0:03:00]}  d5 {[%clk 0:02:55]} 3. e3 {[%clk 0:03:00]}  c5 {[%clk 0:02:53]} 4. Bxf6 {[%clk 0:02:58]}  gxf6 {[%clk 0:02:52]} 5. c3 {[%clk 0:02:57]}  Nc6 {[%clk 0:02:49]} 6. Nf3 {[%clk 0:02:55]}  e6 {[%clk 0:02:48]} 7. g3 {[%clk 0:02:48]}  Qb6 {[%clk 0:02:47]} 8. Qb3 {[%clk 0:02:47]}  Bd7 {[%clk 0:02:38]} 9. Nbd2 {[%clk 0:02:46]}  h5 {[%clk 0:02:36]} 10. Bg2 {[%clk 0:02:45]}  Na5 {[%clk 0:02:36]} 11. Qc2 {[%clk 0:02:41]}  Bb5 {[%clk 0:02:33]} 12. dxc5 {[%clk 0:02:39]}  Qc7 {[%clk 0:02:27]} 13. Nd4 {[%clk 0:02:34]}  Bd7 {[%clk 0:02:20]} 14. b4 {[%clk 0:02:31]}  Nc6 {[%clk 0:02:21]} 15. h4 {[%clk 0:02:28]}  e5 {[%clk 0:02:19]} 16. Nb5 {[%clk 0:02:25]}  Qc8 {[%clk 0:02:15]} 17. Bxd5 {[%clk 0:02:24]}  Nxb4 {[%clk 0:02:15]} 18. cxb4 {[%clk 0:02:20]}  Bxb5 {[%clk 0:02:16]} 19. Ne4 {[%clk 0:02:11]}  Be7 {[%clk 0:02:11]} 20. Qb3 {[%clk 0:02:07]}  Qg4 {[%clk 0:02:08]} 21. Nc3 {[%clk 0:01:49]}  Bd3 {[%clk 0:02:00]} 22. Bxf7+ {[%clk 0:01:44]}  Kf8 {[%clk 0:02:01]} 23. Be6 {[%clk 0:01:44]}  Qf3 {[%clk 0:02:02]} 24. Bd5 {[%clk 0:01:42]}  e4 {[%clk 0:02:02]} 25. Rh2 {[%clk 0:01:37]}  Rb8 {[%clk 0:01:48]} 26. Rd1 {[%clk 0:01:36]}  Qf5 {[%clk 0:01:42]} 27. Bc4 {[%clk 0:01:32]}  Rd8 {[%clk 0:01:35]} 28. Bxd3 {[%clk 0:01:27]}  exd3 {[%clk 0:01:36]} 29. Kd2 {[%clk 0:01:18]}  Rg8 {[%clk 0:01:31]} 30. Re1 {[%clk 0:01:15]}  Rg4 {[%clk 0:01:31]} 31. e4 {[%clk 0:01:12]}  Qe5 {[%clk 0:01:32]} 32. Re3 {[%clk 0:01:10]}  Qd4 {[%clk 0:01:26]} 33. Rh1 {[%clk 0:01:07]}  a5 {[%clk 0:01:22]} 34. a3 {[%clk 0:01:06]}  axb4 {[%clk 0:01:18]} 35. axb4 {[%clk 0:01:07]}  Ra8 {[%clk 0:01:18]} 36. Rf1 {[%clk 0:01:05]}  Rd8 {[%clk 0:01:14]} 37. Rd1 {[%clk 0:01:04]}  b6 {[%clk 0:01:02]} 38. Nb5 {[%clk 0:00:47]}  Qe5 {[%clk 0:00:59]} 39. Rxd3 {[%clk 0:00:22]}  Rxe4 {[%clk 0:00:59]} 40. Rd7 {[%clk 0:00:19]}  Rxd7+ {[%clk 0:00:57]} 0-1


[Site "https://www.chess.com"]